Cogmind - Beta 12 @@@ ROGUE MODE // 2023.10.29 @ 22:52:15 Player: Figgis Result: Destroyed by 8R-AWN with 8R-AWN's Boregun Performance ------------- Evolutions (1) 500 Regions Visited (5) 1000 Robots Destroyed (48) 240 Value Destroyed (820) 820 Prototype IDs (26) 520 Alien Tech Used (0) 0 Bonus (525) 525 TOTAL SCORE: 3605 Bonus ------- High Alert Combat Kills 4 Follower Combat Kills 252 Aligned with FarCom 300 Friendly Fire -31 Cogmind --------- Core Integrity 0/400 Matter 17/300 Energy 252/290 System Corruption 2% Temperature Hot (266) Movement Core (1900) Ox37 Location -9/Exiles Parts ------- > --- POWER (1) -------- Reinforced Deuterium Engine > --- PROPULSION (2) --- Armored Wheel > --- UTILITY (3) ------ Huge Storage Unit > --- WEAPON (3) ------- YOLO Cannon > --- INVENTORY (25) --- Ion Engine Ion Engine Experimental Sensor Array Cloak of Protection Utility Shielding AWS/Thermal Minigun Minigun Gauss Rifle Gauss Cannon Rocket Launcher Heavy Explosive Trap Heavy Explosive Trap Heavy Explosive Trap Heavy Explosive Trap Peak State ------------ > --- POWER ------------ Reinforced Deuterium Engine > --- PROPULSION ------- Armored Wheel > --- UTILITY ---------- Huge Storage Unit Medium Armor Plating > --- WEAPON ----------- Arc Projector YOLO Cannon > --- INVENTORY -------- Ion Engine Ion Engine Experimental Sensor Array Cloak of Protection Utility Shielding Medium Armor Plating AWS/Thermal Minigun Minigun Gauss Rifle Gauss Cannon Rocket Launcher Heavy Explosive Trap Heavy Explosive Trap Heavy Explosive Trap Heavy Explosive Trap [Rating: 38] Favorites ----------- Power Heavy Ion Engine Engine Heavy Ion Engine Propulsion Wheel Wheel Wheel Utility Huge Storage Unit Device Heat Sink Storage Huge Storage Unit Protection Utility Shielding Weapon Medium Laser Energy Gun Medium Laser Energy Cannon YOLO Cannon Ballistic Gun High-powered Shotgun Ballistic Cannon Light Cannon Launcher Rocket Launcher Build | -11 -10 -10 -9 -9 -9 ------- Run | Jun Mat Min Mat Min Exi Slots Evolved 2 | . . . 2 . . Power . | . . . . . . Propulsion . | . . . . . . Utility 1 | . . . 1 . . Weapon 1 | . . . 1 . . Parts Attached 38 | 6 2 3 9 4 14 Power 5 | 1 . 1 1 . 2 Engine 5 | 1 . 1 1 . 2 Core . | . . . . . . Reactor . | . . . . . . Propulsion 7 | 2 . . 2 1 2 Treads . | . . . . . . Leg . | . . . . . . Wheel 7 | 2 . . 2 1 2 Hover . | . . . . . . Flight . | . . . . . . Utility 10 | 1 2 1 1 2 3 Device 4 | . . 1 . 2 1 Storage 3 | 1 2 . . . . Processor . | . . . . . . Hackware . | . . . . . . Protection 3 | . . . 1 . 2 Artifact . | . . . . . . Weapon 16 | 2 . 1 5 1 7 Energy Gun 5 | 1 . . 1 1 2 Energy Cannon 1 | . . . . . 1 Ballistic Gun 7 | 1 . . 4 . 2 Ballistic Cannon 2 | . . 1 . . 1 Launcher 1 | . . . . . 1 Special Weapon . | . . . . . . Impact Weapon . | . . . . . . Slashing Weapon . | . . . . . . Piercing Weapon . | . . . . . . Special Melee Weapon . | . . . . . . Unidentified Prototypes 3 | . . . 2 . 1 Parts Lost 15 | . . 2 1 . 12 Power 2 | . . 1 . . 1 Propulsion 4 | . . . 1 . 3 Utility 4 | . . . . . 4 Weapon 5 | . . 1 . . 4 Highest Loss Streak 7 | . . 1 1 . 7 To Critical Strikes 4 | . . . . . 4 Average Slot Usage (%) 95 | . 85 96 98 100 91 Engine 12 | . 14 13 11 11 11 Wheel 23 | . 28 28 21 22 19 Device 8 | . . 10 11 11 8 Storage 12 | . 14 14 11 11 11 Protection 6 | . . . 10 11 10 Energy Gun 11 | . 14 14 10 8 10 Ballistic Gun 13 | . 14 5 12 24 16 Ballistic Cannon 4 | . . 8 10 . . Naked Turns . | . . . . . . Heaviest Build 124 | 13 88 89 99 101 124 Greatest Support 32 | 32 32 32 32 20 22 Greatest Overweight (x) 10 | . 2 2 6 5 10 Average Overweight (x) 2 | . . 2 3 4 5 Largest Inventory Capacity 25 | 8 25 25 25 25 25 Average Capacity 23 | 6 15 25 25 25 25 Most Carried 25 | 4 7 16 25 25 25 Average Carried 17 | 1 5 12 22 24 22 Final Capacity 25 | 8 25 25 25 25 25 Final Carried 25 | 2 7 16 25 25 16 Class Distribution -------------------- 51% | Mutant 32% | Tank 15% | Scavenger-Tank Dominant Class ---------------- Mutant | -10/Materials Mutant | -10/Mines Scavenger-Tank | -9/Materials Tank | -9/Mines Mutant | -9/Exiles Resources | -11 -10 -10 -9 -9 -9 ----------- Run | Jun Mat Min Mat Min Exi Matter Collected 917 | 203 90 52 314 258 . Remotely . | . . . . . . Salvage Created 1062 | . 154 172 587 132 17 Parts 89 | . 15 14 44 16 . Haulers Intercepted 1 | . . . 1 . . Recyclers Shooed . | . . . . . . Parts Field Recycled . | . . . . . . Retrieved Matter . | . . . . . . Parts Self-Destructed . | . . . . . . Prevented . | . . . . . . Kills | -11 -10 -10 -9 -9 -9 ------- Run | Jun Mat Min Mat Min Exi Combat Hostiles Destroyed 44 | . 5 10 13 10 6 Guns 35 | . 5 10 10 10 . Cannons 3 | . . . 3 . . AOE 6 | . . . . . 6 Classes Destroyed 11 | . 3 . 6 1 1 Worker 1 | . . . 1 . . Tunneler 1 | . . . 1 . . Hauler 1 | . . . 1 . . Recycler 1 | . . . 1 . . Operator 1 | . . . 1 . . Watcher 4 | . 1 . 3 . . Swarmer 27 | . 3 9 5 10 . Grunt 7 | . 2 1 4 . . Sentry 4 | . . . 4 . . Zionite 1 | . . . . 1 . Assembled 6 | . . . . . 6 Best Kill Streak 6 | . 3 6 6 4 6 Combat Bots Only 6 | . 3 6 4 4 6 Max Kills in Single Turn 3 | . 1 1 2 2 3 Gunslinging 1 | . . . . 1 . Exploded 3 | . . . . . 3 Melee . | . . . . . . Uniques/NPCs Destroyed . | . . . . . . Combat | -11 -10 -10 -9 -9 -9 -------- Run | Jun Mat Min Mat Min Exi Damage Taken 2574 | . 154 279 436 255 1450 Core 527 | . 32 84 136 32 243 Absorbed by Shields . | . . . . . . Redirected to Shielding 51 | . . . 6 6 39 Core Remaining (%) 76 | 100 . 53 . . . Volleys Fired 127 | . 13 26 39 14 35 Largest 3 | . 2 2 3 3 3 Hottest 160 | . 70 85 123 130 160 Shots Fired 305 | . 26 51 116 40 72 Gun 246 | . 26 49 78 40 53 Cannon 52 | . . 2 38 . 12 Launcher 7 | . . . . . 7 Special . | . . . . . . Kinetic 179 | . 13 26 79 36 25 Thermal 99 | . 13 25 37 4 20 Explosive 7 | . . . . . 7 Electromagnetic 20 | . . . . . 20 Robot Hit Streak 27 | . 6 8 27 5 12 Robot Miss Streak 8 | . 3 3 3 5 8 Penetration Max . | . . . . . . Secondary Targets 5 | . . 2 . 3 . Max Gunslinging Chain 1 | . . 1 . 1 . Shots Hit Robots 193 | . 13 35 79 24 42 Core Hits 90 | . 9 18 29 12 22 Critical Kills 1 | . . . 1 . . Critical Parts Destroyed . | . . . . . . Critical Strikes 9 | . . 4 5 . . Burn 4 | . . 4 . . . Destroy 1 | . . . 1 . . Blast 4 | . . . 4 . . Melee Attacks . | . . . . . . Impact . | . . . . . . Slashing . | . . . . . . Piercing . | . . . . . . Sneak Attacks . | . . . . . . Combat Hostiles . | . . . . . . Follow-up Attacks . | . . . . . . Damage Inflicted 2989 | . 154 409 1311 436 679 Guns 2176 | . 154 387 987 429 219 Cannons 446 | . . 22 324 . 100 Explosions 360 | . . . . . 360 Melee . | . . . . . . Ramming 7 | . . . . 7 . Kinetic 1666 | . 38 142 866 378 242 Thermal 975 | . 116 267 445 51 96 Explosive 333 | . . . . . 333 Electromagnetic 8 | . . . . . 8 Impact . | . . . . . . Slashing . | . . . . . . Piercing . | . . . . . . Highest Corruption 2 | . . . 2 2 2 Average Corruption 2 | . . . 2 2 2 Corruption Purged . | . . . . . . Corruption Blocked . | . . . . . . Effects 21 | . . . 1 11 9 Message Errors 4 | . . . . 3 1 Matter Fused 6 | . . . 1 3 2 Heat Flow Errors 1 | . . . . . 1 Energy Discharges 1 | . . . . 1 . Data Loss (minor) 2 | . . . . 1 1 Data Loss (major) 2 | . . . . 1 1 Misfires 3 | . . . . 1 2 Weapon Failures 2 | . . . . 1 1 Overload Shots . | . . . . . . Overflow Damage . | . . . . . . Projectiles . | . . . . . . Explosions . | . . . . . . Melee . | . . . . . . Knockbacks 3 | . . 1 2 . . Impact . | . . . . . . Kinetic 3 | . . 1 2 . . Secondary . | . . . . . . Self-Inflicted Damage 3 | . . . . 3 . Shots . | . . . . . . Rammed 1 | . . . . 1 . Targets Rammed 1 | . . . . 1 . Kicked . | . . . . . . Crushed . | . . . . . . Highest Temperature 513 | . 100 125 151 208 513 Average Temperature 105 | . 53 49 48 91 231 Received Heat Transfer 252 | . 57 66 123 6 . Effects 8 | . . . . . 8 Shutdowns 3 | . . . . . 3 Interference 1 | . . . . . 1 Short Circuit 1 | . . . . . 1 Damage (major) 2 | . . . . . 2 Damage (core) 1 | . . . . . 1 Siege Activations . | . . . . . . Robots Corrupted . | . . . . . . Combat Hostiles . | . . . . . . Parts Fried . | . . . . . . Impact Corruptions . | . . . . . . Robots Melted . | . . . . . . Combat Hostiles . | . . . . . . Parts Melted 6 | . . 2 4 . . Heat Transferred 2803 | . 333 1036 1036 100 298 Parts Sabotaged . | . . . . . . Parts Stolen . | . . . . . . Parts Stripped . | . . . . . . Power Chain Reactions . | . . . . . . Missiles Intercepted . | . . . . . . Alert | -11 -10 -10 -9 -9 -9 ------- Run | Jun Mat Min Mat Min Exi Peak Influence 425 | . 105 287 425 308 . Initial 78 | . . 27 . 78 . Average 160 | . 62 136 231 195 . Maximum Alert Level 2 | . . 1 2 1 . Low Security (%) 59 | 100 100 64 29 55 . Level 1 39 | . . 35 69 44 . Level 2 . | . . . 1 . . Level 3 . | . . . . . . Level 4 . | . . . . . . Level 5 . | . . . . . . High Security . | . . . . . . Max Security . | . . . . . . Squads Dispatched . | . . . . . . Investigation . | . . . . . . Extermination . | . . . . . . Reinforcement . | . . . . . . Assault . | . . . . . . Garrison . | . . . . . . Intercept . | . . . . . . Searches Triggered . | . . . . . . Construction Impeded . | . . . . . . Haulers Reinforced . | . . . . . . Active Scanning Responses . | . . . . . . Cargo Convoy Interrupts . | . . . . . . Stealth | -11 -10 -10 -9 -9 -9 --------- Run | Jun Mat Min Mat Min Exi Distress Signals 2 | . . . 2 . . Communications Jammed . | . . . . . . Distress Signals . | . . . . . . Times Spotted 63 | . 7 13 22 13 8 Peak Tracking Total 9 | . 3 6 7 4 9 Tactical Retreats . | . . . . . . Traps | -11 -10 -10 -9 -9 -9 ------- Run | Jun Mat Min Mat Min Exi Traps Triggered 1 | . . . 1 . . Indirectly . | . . . . . . Trap Hack Attempts . | . . . . . . Triggered . | . . . . . . Disarmed . | . . . . . . Reprogrammed . | . . . . . . Reused . | . . . . . . Traps Extracted . | . . . . . . Installed 1 | . . . . . 1 Triggered . | . . . . . . Most Traps Carried 5 | . . 5 5 5 5 Machines | -11 -10 -10 -9 -9 -9 ---------- Run | Jun Mat Min Mat Min Exi Machines Disabled 7 | . . . 1 . 6 Max in Single Turn 2 | . . . . . 2 Machines Repaired . | . . . . . . Machines Sabotaged . | . . . . . . Overloaded Fab Kills . | . . . . . . Hacking | -11 -10 -10 -9 -9 -9 --------- Run | Jun Mat Min Mat Min Exi Machines Accessed 11 | . 4 . 5 1 1 Terminals 9 | . 4 . 5 . . Fabricators . | . . . . . . Repair Stations . | . . . . . . Recycling Units . | . . . . . . Scanalyzers . | . . . . . . Garrison Access . | . . . . . . Total Hacks 27 | . 11 . 14 1 1 Successful 15 | . 4 . 9 1 1 Failed 12 | . 7 . 5 . . Catastrophic 3 | . 1 . 2 . . Database Lockouts . | . . . . . . Manual 12 | . 9 . 2 . 1 Terminals 25 | . 11 . 14 . . Fabricators . | . . . . . . Repair Stations . | . . . . . . Recycling Units . | . . . . . . Scanalyzers . | . . . . . . Garrison Access . | . . . . . . Terminal Hacks 15 | . 4 . 9 1 1 Record 3 | . . . 3 . . Robot Analysis 5 | . 4 . 1 . . Open Door 1 | . . . . 1 . Branch Access Points 1 | . . . 1 . . Maintenance Status 1 | . . . 1 . . Patrol Status 1 | . . . 1 . . Transport Status 1 | . . . 1 . . Zone Layout 1 | . . . 1 . . EX-Prototype ID Bank 1 | . . . . . 1 Fabricator Hacks . | . . . . . . Repair Station Hacks . | . . . . . . Recycling Unit Hacks . | . . . . . . Scanalyzer . | . . . . . . Garrison Access Hacks . | . . . . . . Unauthorized Hacks . | . . . . . . Terminals . | . . . . . . Fabricators . | . . . . . . Repair Stations . | . . . . . . Recycling Units . | . . . . . . Scanalyzers . | . . . . . . Garrison Access . | . . . . . . Data Cores Recovered 1 | . . . 1 . . Used 1 | . . . 1 . . Hacking Detections 7 | . 3 . 4 . . Full Trace Events . | . . . . . . Feedback Events . | . . . . . . Feedback Blocked . | . . . . . . Robot Schematics Acquired . | . . . . . . Robots Built . | . . . . . . Authchips . | . . . . . . Time . | . . . . . . Total Robot Build Rating . | . . . . . . Part Schematics Acquired . | . . . . . . Parts Built . | . . . . . . Authchips . | . . . . . . Time . | . . . . . . Total Part Build Rating . | . . . . . . Parts Repaired . | . . . . . . Time . | . . . . . . Parts Recycled . | . . . . . . Recycled Matter . | . . . . . . Retrieved Matter . | . . . . . . Retrieved Components . | . . . . . . Parts Scanalyzed . | . . . . . . Part Schematics Acquired . | . . . . . . Parts Damaged . | . . . . . . Bothacking | -11 -10 -10 -9 -9 -9 ------------ Run | Jun Mat Min Mat Min Exi Used RIF Installer . | . . . . . . Robots Hacked . | . . . . . . Non-combat . | . . . . . . Combat . | . . . . . . Robot Hacks Applied . | . . . . . . Relay Couplers Released . | . . . . . . Fabnet Peak Effective % . | . . . . . . Robots Rewired . | . . . . . . Allies Hacked . | . . . . . . Hacks Repelled . | . . . . . . Allies | -11 -10 -10 -9 -9 -9 -------- Run | Jun Mat Min Mat Min Exi Total Allies 5 | . . 3 . 2 . Largest Group 3 | . . 3 3 2 1 Highest-Rated Group 43 | . . 40 40 43 31 Highest-Rated Ally 31 | . . 16 16 31 31 Total Orders . | . . . . . . Ally Attacks 48 | . . 18 23 7 . Total Damage 593 | . . 162 280 151 . Kills 10 | . . 3 4 3 . Allies Corrupted . | . . . . . . Allies Melted . | . . . . . . Intel | -11 -10 -10 -9 -9 -9 ------- Run | Jun Mat Min Mat Min Exi Robot Analysis Total 5 | . 4 . 1 . . Derelict Logs Recovered 4 | . . 3 . 1 . Drone Launches . | . . . . . . Drone Recoveries . | . . . . . . Exploration | -11 -10 -10 -9 -9 -9 ------------- Run | Jun Mat Min Mat Min Exi Turns Passed 3731 | 58 576 943 882 765 507 Spaces Moved 2295 | 41 473 645 456 455 225 Core 6 | 6 . . . . . Treads . | . . . . . . Legs . | . . . . . . Wheels 2289 | 35 473 645 456 455 225 Hover . | . . . . . . Flight . | . . . . . . Fastest Speed 50 | 50 100 130 130 140 145 Average Speed 134 | 92 111 130 142 151 158 Slowest Speed 240 | 100 130 130 190 155 240 Overloaded Moves . | . . . . . . Propulsion Burnouts . | . . . . . . Robots Hopped . | . . . . . . Cave-ins Triggered . | . . . . . . Exploration Rate (%) 54 | 4 64 98 46 75 42 Regions Visited 5 Branch Regions 3 Pre-discovered Areas . | . . . . . . Known Exits Taken 1 | . . . 1 . . Unknown Exits Taken 4 | 1 1 1 . 1 . Scrap Searched 3 | . . 1 . 2 . Spaces Dug . | . . . . . . Terrain Destroyed 68 | . . . . . 68 Melee . | . . . . . . Projectile 6 | . . . . . 6 AOE 62 | . . . . . 62 Terrain Rammed . | . . . . . . Walls Destroyed . | . . . . . . Machines Disabled . | . . . . . . Actions | -11 -10 -10 -9 -9 -9 --------- Run | Jun Mat Min Mat Min Exi Total 2677 | 60 500 704 604 506 303 Wait 131 | 6 4 17 68 20 16 Move 2290 | 40 472 644 455 454 225 Hop . | . . . . . . Pick Up 58 | 8 7 13 22 5 3 Fast Attach 2 | . . . 1 1 . Attach 24 | 6 1 3 4 . 10 Detach 3 | . . . . . 3 Swap 12 | . 1 . 4 3 4 Drop 28 | . 2 1 11 8 6 Fire 127 | . 13 26 39 14 35 Melee . | . . . . . . Ram 1 | . . . . 1 . Kick . | . . . . . . Crush . | . . . . . . Escape Stasis . | . . . . . . Rewire . | . . . . . . Trap 1 | . . . . . 1 Miscellaneous . | . . . . . . Route ------- -11/Junkyard -10/Materials (discovered 2 exits: *Mat / [*Min]) -10/Mines (discovered 2 exits: *Mat x2) -9/Materials (discovered 3 exits: [*Mat] / *Min x2) -9/Mines (discovered 2 exits: [*Mat] / *Exi) -9/Exiles History --------- Turn | Location | Event 11 | -11/Junkyard | Discovered new exit (range 15) 59 | -11/Junkyard | Entered Materials 63 | -10/Materials | Discovered new exit (range 16) 304 | -10/Materials | Build established: Mutant 314 | -10/Materials | Discovered new exit (range 10) 635 | -10/Materials | Entered Mines 887 | -10/Mines | Learned 2 Materials zone layouts 896 | -10/Mines | Found a hidden stash of uninstalled traps 945 | -10/Mines | Assisted by bots powering up and referring to "LRC-V3" 1033 | -10/Mines | Learned Materials emergency access door positions 1055 | -10/Mines | Received a Rocket Launcher from a helpful Derelict 1191 | -10/Mines | Discovered new exit (range 8) 1426 | -10/Mines | Discovered new exit (range 8) 1578 | -10/Mines | Entered Materials 1578 | -9/Materials | Accompanied by 3 allies 1578 | -9/Materials | Evolved 2 slots: Utility x1, Weapon x1 1905 | -9/Materials | Discovered new exit (range 13) 2107 | -9/Materials | Build established: Scavenger-Tank 2432 | -9/Materials | Identified exit to Mines 2460 | -9/Materials | Entered Mines 2537 | -9/Mines | Discovered new exit (range 10) 2629 | -9/Mines | Met a Derelict who couldn't figure out how to use a Trap Extractor 2909 | -9/Mines | Learned Materials security intel 2933 | -9/Mines | Found a damaged Exp. Sensor Array with a note attached 2939 | -9/Mines | Found Prototype Device 2997 | -9/Mines | Build established: Tank 3114 | -9/Mines | Deemed a non-threat by the Exiles lab entrance 3114 | -9/Mines | Discovered new exit (range 5) 3225 | -9/Mines | Entered Exiles 3225 | -9/Exiles | Accompanied by 1 ally 3255 | -9/Exiles | Led the pair of lost Derelicts to a safe place 3264 | -9/Exiles | Met 8R-AWN 3292 | -9/Exiles | Met EX-HEX 3334 | -9/Exiles | Met EX-BIN 3351 | -9/Exiles | Aligned with FarCom system 3353 | -9/Exiles | Given EX-Vault access code 3388 | -9/Exiles | Opened EX-Vault 3404 | -9/Exiles | Found Cloak of Protection 3408 | -9/Exiles | Found YOLO Cannon 3413 | -9/Exiles | Found AWS/Thermal 3446 | -9/Exiles | Warned to stay clear of 0b10 Research branches 3515 | -9/Exiles | Warned about trapping Exiles lab 3550 | -9/Exiles | Attacked by the Exiles 3579 | -9/Exiles | Core integrity fell below 50% 3635 | -9/Exiles | Identified Exp. Sensor Array 3670 | -9/Exiles | Core integrity fell below 20% 3672 | -9/Exiles | Lost 7 parts (1p2n2u2w) 3732 | -9/Exiles | Destroyed by 8R-AWN with 8R-AWN's Boregun Last Messages --------------- 03671_ Penetrated by HV Slug. 03671_ Critical hit (Destroy). 03673_ The unstable cave ceiling collapses. 03675_ Penetrated by HV Slug. 03678_ Power failure, Rnf. Deuterium Engine shutdown. 03679_ Penetrated by HV Slug. 03688_ Med. Armor Plating destroyed. 03688_ Penetrated by HV Slug. 03696_ Arc Projector destroyed. 03696_ Penetrated by HV Slug. 03705_ HV Slug penetrates Machine. 03713_ Arm. Wheel broken. 03713_ Overheating: Short circuit. 03713_ Penetrated by HV Slug. 03718_ Critical hit (Destroy). 03718_ Penetrated by HV Slug. 03718_ Critical hit (Destroy). 03722_ Penetrated by HV Slug. 03722_ Med. Armor Plating destroyed. 03722_ Penetrated by HV Slug. Map ----- +----------------------------------------------------+ | ??????#" """#?????????????????????????? | | ??????#" """#?????????????????????????? | | ??????## """"?????????????????????????? | | ???????# """#?????????????????????????? | | ???????#" "X" """"?????????????????????????? | | ???????#" """ #?????????????????????????? | | ???????#" """""""""#?????????????????????????? | | ??????##" ###########?????????????????????????? | | ?????##"" #???????????????????????????????????? | | ????##"" #???????????????????????????????????? | | ????"""" ##??????????????????????????????????? | | ??" " "" ##???###########???????????????????? | | ?"" " #####"""""""""##??????????????????? | | " " """ """"##?????????????????? | | "" " #?????????????????? | | " """#?????????????????? | | "a"#???????????#####?? | | " "###????????##" #?? | | "";##???????#" #?? | | """""" " "##? ??##" ##? | | ? ######""" # ### ## | | ?""#?????#####" " | | ?????????????##"" ^ | | ??????????????#""""! | | ?????????????## !!!! g ## | | ??????????####" !!%!! @ #### | | ??????????#"" !!!! ""#?#"""" | | ????????"""" !!! #"""##?##### | | ???? #####??????? | | ??? ###??????????? | | ???? % ##????????????? | | ???? " "#?????????????? | | ??????"## ##" " # ##?????????????? | | ????????# ??####; "" ";# " ##??????????????? | | ????????#??????####"""";## # ####??????????????? | | ??????????????????####;#?## ##?????????????????? | | ????????????????????? #???#####??????????????????? | | ?????????????????????????????????????????????????? | | ?????????????????????????????????????????????????? | | ?????????????????????????????????????????????????? | | ?????????????????????????????????????????????????? | | ?????????????????????????????????????????????????? | | ?????????????????????????????????????????????????? | | ?????????????????????????????????????????????????? | | ?????????????????????????????????????????????????? | | ?????????????????????????????????????????????????? | | ?????????????????????????????????????????????????? | | ?????????????????????????????????????????????????? | | ?????????????????????????????????????????????????? | | ?????????????????????????????????????????????????? | +----------------------------------------------------+ Best States ------------- Heat Dissipation 55 Energy Generation 16 Energy Capacity 290 Matter Stores 300 Matter Capacity 300 Sight Range 16 Terrain Scan Density 10 Armor Coverage 225 Utility Shielding 33 Evasion (%) 40 Item Schematics ----------------- None Robot Schematics ------------------ None Fabricated ------------ Nothing Alien Tech Used ----------------- None Achievements -------------- None Challenges ------------ None Game ------ Seed AntimissileMiniBeamcaster Manual? 0 Play Time 00:24:17 Cumulative 89.7 hours Start 2023.10.29 @ 22:24:37 End 2023.10.29 @ 22:52:15 Sessions 1 Manual Loads 0 Difficulty Rogue Special Mode None Game No. 152 Rogue 149 Adventurer 3 Explorer 0 Win Type - Total 0 Types 0/0/0/0/0/0/0/0/0 Lore% 35 Gallery% 53 Achievement% 38 Wizard Run 0 Options --------- ASCII 0 Keyboard 0 Movement Mouse Keybinds 0 Fullscreen 2 Font 18/SmallcapsGlow Map View 76x50 Tactical HUD 1 Map Filters NONE Filters NONE Steam 1 RUN: 21c89d2c-702b-4db9-8633-b8a5c4a49f84